Workbook

Sheet Thesis_Results
A1: Expert sheet for the design of an orifice
A2: Authors: Nicolas J. Adam, Givonni De Cesare & Anton J. Schleiss
A3: Laboratoires de Constructions Hydrauliques - EPFL | N3: 1 = ROUNDED ORIFICES (EXP) | O3: 0 | P3: 0
N4: 2 = 2-CHAMFERED ORIFICES 8EXP) | O4: 160 | P4: 160
B5: INPUT | N5: 3 = CHAMFERED ORIFICES (NUM)
B6: kAB | C6: 30 | D6: =C6-$C$9*C6 -> 28.5 | E6: =C6+$C$9*C6 -> 31.5
B7: kBA | C7: 15 | D7: =C7-$C$9*C7 -> 14.25 | E7: =C7+$C$9*C7 -> 15.75
B8: λ | C8: =C7/C6 -> 0.5 | D8: =C8-$C$9*C8 -> 0.475 | E8: =C8+$C$9*C8 -> 0.525
B9: Range | C9: 0.05 | I9: Version 1.0 (24.10.2017)
B11: OUTPUT
A12: CONTROL (0 = EXP CHAMFER, 1 = EXP ROUNDED, 2 = EXP 2 CHAMFER, 3 = NUM CHAMFER) | B12: β | C12: α | D12: αi | E12: αR | F12: θ (R) or (βb) | G12: αL | H12: θL | I12: kAB | J12: kBA | K12: λ | L12: Proximity Factor | M12: RANK
A13: 3 | B13: 0.5 | C13: 0.1 | D13: 0.075 | E13: =C13-D13 -> 0.025 | F13: 45 | G13: 9999 | H13: 9999 | I13: 30.43197821 | J13: 15.61831734 | K13: =MIN(I13:J13)/MAX(I13:J13) -> 0.5132205744 | L13: =SQRT((I13-$C$6)^2+(J13-$C$7)^2) -> 0.75426885 | M13: 97
A14: 3 | B14: 0.5 | C14: 0.2 | D14: 0.1 | E14: 0.1 | F14: 10 | G14: 9999 | H14: 9999 | I14: 28.8135835 | J14: 15.20325968 | K14: =MIN(I14:J14)/MAX(I14:J14) -> 0.527642099 | L14: 1.20370204 | M14: 71
A15: 3 | B15: 0.4953703704 | C15: 0.1990740741 | D15: 0.09953703704 | E15: 0.09953703704 | F15: 45 | G15: 9999 | H15: 9999 | I15: 29.94837097 | J15: 13.25260156 | K15: =MIN(I15:J15)/MAX(I15:J15) -> 0.4425149392 | L15: 1.748160995 | M15: 58
A16: 3 | B16: 0.5 | C16: 0.1 | D16: 0.025 | E16: 0.075 | F16: 45 | G16: 9999 | H16: 9999 | I16: 30.84564004 | J16: 16.61007626 | K16: =MIN(I16:J16)/MAX(I16:J16) -> 0.5384902451 | L16: 1.818640329 | M16: 92
A17: 3 | B17: 0.5 | C17: 0.1 | D17: 0.025 | E17: 0.075 | F17: 60 | G17: 9999 | H17: 9999 | I17: 30.92982264 | J17: 16.60788911 | K17: =MIN(I17:J17)/MAX(I17:J17) -> 0.536953907 | L17: 1.857384595 | M17: 93
A18: 1 | B18: 0.4953703704 | C18: 0.05092592593 | D18: 0.006944444444 | E18: 0.04398148148 | F18: 0.212962963 | G18: 9999 | H18: 9999 | I18: 31.25 | J18: 16.4 | K18: =J18/I18 -> 0.5248 | L18: 1.876832438 | M18: 26
A19: 1 | B19: 0.4953703704 | C19: 0.09953703704 | D19: 0.01851851852 | E19: 0.08101851852 | F19: 0.1759259259 | G19: 9999 | H19: 9999 | I19: 30 | J19: 13 | K19: =J19/I19 -> 0.4333333333 | L19: 2 | M19: 25
A20: 3 | B20: 0.5 | C20: 0.1 | D20: 0.025 | E20: 0.075 | F20: 15 | G20: 9999 | H20: 9999 | I20: 30.82975282 | J20: 16.89169189 | K20: =MIN(I20:J20)/MAX(I20:J20) -> 0.5479022811 | L20: 2.065668889 | M20: 90
A21: 3 | B21: 0.4953703704 | C21: 0.1990740741 | D21: 0.05092592593 | E21: 0.1481481481 | F21: 45 | G21: 9999 | H21: 9999 | I21: 30.87034826 | J21: 16.99748304 | K21: =MIN(I21:J21)/MAX(I21:J21) -> 0.5506087232 | L21: 2.178863138 | M21: 68
A22: 3 | B22: 0.5 | C22: 0.2 | D22: 0.05 | E22: 0.15 | F22: 45 | G22: 9999 | H22: 9999 | I22: 30.87034826 | J22: 16.99748304 | K22: =MIN(I22:J22)/MAX(I22:J22) -> 0.5506087232 | L22: 2.178863138 | M22: 80
A23: 0 | B23: 0.4953703704 | C23: 0.1990740741 | D23: 0.1481481481 | E23: 0.05092592593 | F23: 45 | G23: 9999 | H23: 9999 | I23: 30.1 | J23: 12.7 | K23: =J23/I23 -> 0.4219269103 | L23: 2.302172887 | M23: 10
A24: 3 | B24: 0.5 | C24: 0.2 | D24: 0.1 | E24: 0.1 | F24: 50 | G24: 9999 | H24: 9999 | I24: 30.04267717 | J24: 12.6321264 | K24: =MIN(I24:J24)/MAX(I24:J24) -> 0.4204727273 | L24: 2.368258159 | M24: 74
A25: 3 | B25: 0.5 | C25: 0.1 | D25: 0.075 | E25: 0.025 | F25: 30 | G25: 9999 | H25: 9999 | I25: 30.48248573 | J25: 17.32178338 | K25: =MIN(I25:J25)/MAX(I25:J25) -> 0.5682536369 | L25: 2.371385782 | M25: 96
A26: 3 | B26: 0.5 | C26: 0.1 | D26: 0.025 | E26: 0.075 | F26: 30 | G26: 9999 | H26: 9999 | I26: 30.79374034 | J26: 12.71408208 | K26: =MIN(I26:J26)/MAX(I26:J26) -> 0.4128787844 | L26: 2.419802569 | M26: 91
A27: 1 | B27: 0.4953703704 | C27: 0.1990740741 | D27: 0 | E27: 0.1990740741 | F27: 0.01851851852 | G27: 9999 | H27: 9999 | I27: 31.46 | J27: 12.6 | K27: =J27/I27 -> 0.4005085823 | L27: 2.809199174 | M27: 24
A28: 3 | B28: 0.4953703704 | C28: 0.1990740741 | D28: 0.1481481481 | E28: 0.05092592593 | F28: 45 | G28: 9999 | H28: 9999 | I28: 28.77228052 | J28: 12.16171142 | K28: =MIN(I28:J28)/MAX(I28:J28) -> 0.4226884766 | L28: 3.09243871 | M28: 66
A29: 3 | B29: 0.5 | C29: 0.2 | D29: 0.15 | E29: 0.05 | F29: 45 | G29: 9999 | H29: 9999 | I29: 28.77228052 | J29: 12.16171142 | K29: =MIN(I29:J29)/MAX(I29:J29) -> 0.4226884766 | L29: 3.09243871 | M29: 85
A30: 0 | B30: 0.4953703704 | C30: 0.1990740741 | D30: 0.09953703704 | E30: 0.09953703704 | F30: 45 | G30: 9999 | H30: 9999 | I30: 29.4 | J30: 18.2 | K30: =J30/I30 -> 0.619047619 | L30: 3.255764119 | M30: 1
A31: 3 | B31: 0.5 | C31: 0.4 | D31: 0.3 | E31: 0.1 | F31: 15 | G31: 9999 | H31: 9999 | I31: 28.08788599 | J31: 17.72422687 | K31: =MIN(I31:J31)/MAX(I31:J31) -> 0.6310274428 | L31: 3.328301673 | M31: 108
A32: 3 | B32: 0.4953703704 | C32: 0.1990740741 | D32: 0.09953703704 | E32: 0.09953703704 | F32: 15 | G32: 9999 | H32: 9999 | I32: 29.30638438 | J32: 11.64758398 | K32: =MIN(I32:J32)/MAX(I32:J32) -> 0.3974418624 | L32: 3.423418726 | M32: 63
A33: 0 | B33: 0.4953703704 | C33: 0.1990740741 | D33: 0.05092592593 | E33: 0.1481481481 | F33: 45 | G33: 9999 | H33: 9999 | I33: 31.45 | J33: 18.15 | K33: =J33/I33 -> 0.5771065183 | L33: 3.467708177 | M33: 12
A34: 3 | B34: 0.5 | C34: 0.2 | D34: 0.15 | E34: 0.05 | F34: 15 | G34: 9999 | H34: 9999 | I34: 28.11662155 | J34: 17.99054147 | K34: =MIN(I34:J34)/MAX(I34:J34) -> 0.6398543095 | L34: 3.53418345 | M34: 83
A35: 3 | B35: 0.5 | C35: 0.4 | D35: 0.1 | E35: 0.3 | F35: 15 | G35: 9999 | H35: 9999 | I35: 30.22849399 | J35: 11.35627199 | K35: 0.3756810378 | L35: 3.650885276 | M35: 105
A36: 3 | B36: 0.5 | C36: 0.2 | D36: 0.05 | E36: 0.15 | F36: 30 | G36: 9999 | H36: 9999 | I36: 30.8534129 | J36: 11.19797088 | K36: 0.3629410761 | L36: 3.896631753 | M36: 79
A37: 3 | B37: 0.5 | C37: 0.4 | D37: 0.1 | E37: 0.3 | F37: 30 | G37: 9999 | H37: 9999 | I37: 30.85432543 | J37: 11.18438733 | K37: 0.362490094 | L37: 3.910085935 | M37: 106
A38: 3 | B38: 0.5 | C38: 0.2 | D38: 0.1 | E38: 0.1 | F38: 40 | G38: 9999 | H38: 9999 | I38: 30.14093304 | J38: 11.06661694 | K38: 0.3671623877 | L38: 3.935907059 | M38: 73
A39: 3 | B39: 0.5 | C39: 0.2 | D39: 0.1 | E39: 0.1 | F39: 20 | G39: 9999 | H39: 9999 | I39: 29.68945809 | J39: 11.01096616 | K39: 0.3708712409 | L39: 4.00110325 | M39: 72
A40: 2 | B40: 0.4953703704 | C40: 0.3981481481 | D40: 0.09953703704 | E40: 0.1990740741 | F40: 45 | G40: 0.09953703704 | H40: 67 | I40: 26.35 | J40: 16.78 | K40: 0.6368121442 | L40: 4.060898915 | M40: 50
A41: 3 | B41: 0.5 | C41: 0.4 | D41: 0.3 | E41: =C41-D41 -> 0.1 | F41: 45 | G41: 9999 | H41: 9999 | I41: 27.90301175 | J41: 11.38981162 | K41: 0.408192912 | L41: 4.175023336 | M41: 110
A42: 3 | B42: 0.5 | C42: 0.2 | D42: 0.1 | E42: 0.1 | F42: 55 | G42: 9999 | H42: 9999 | I42: 29.88070286 | J42: 19.2853371 | K42: 0.6454110932 | L42: 4.286997299 | M42: 75
A43: 3 | B43: 0.5 | C43: 0.2 | D43: 0.15 | E43: 0.05 | F43: 30 | G43: 9999 | H43: 9999 | I43: 28.56965494 | J43: 10.90455503 | K43: 0.38168312 | L43: 4.338036015 | M43: 84
A44: 3 | B44: 0.4953703704 | C44: 0.1990740741 | D44: 0.09953703704 | E44: 0.09953703704 | F44: 30 | G44: 9999 | H44: 9999 | I44: 30.08233848 | J44: 10.63871981 | K44: 0.353653351 | L44: 4.362057373 | M44: 64
A45: 3 | B45: 0.5 | C45: 0.4 | D45: 0.3 | E45: 0.1 | F45: 30 | G45: 9999 | H45: 9999 | I45: 28.50679466 | J45: 10.85132829 | K45: 0.3806576089 | L45: =SQRT((I45-$C$6)^2+(J45-$C$7)^2) -> 4.409210712 | M45: 109
A46: 0 | B46: 0.4953703704 | C46: 0.1990740741 | D46: 0.09953703704 | E46: 0.09953703704 | F46: 15 | G46: 9999 | H46: 9999 | I46: 30.6 | J46: 10.6 | K46: =J46/I46 -> 0.3464052288 | L46: 4.440720662 | M46: 7
A47: 3 | B47: 0.4953703704 | C47: 0.1990740741 | D47: 0 | E47: 0.1990740741 | F47: 45 | G47: 9999 | H47: 9999 | I47: 29.92370836 | J47: 19.48965072 | K47: =MIN(I47:J47)/MAX(I47:J47) -> 0.6513113442 | L47: 4.490298872 | M47: 67
A48: 0 | B48: 0.4953703704 | C48: 0.1990740741 | D48: 0.09953703704 | E48: 0.09953703704 | F48: 30 | G48: 9999 | H48: 9999 | I48: 30.6 | J48: 10.5 | K48: =J48/I48 -> 0.3431372549 | L48: 4.539823785 | M48: 8
A49: 0 | B49: 0.4953703704 | C49: 0.1990740741 | D49: 0 | E49: 0.1990740741 | F49: 46 | G49: 9999 | H49: 9999 | I49: 32.9 | J49: 18.5 | K49: =J49/I49 -> 0.5623100304 | L49: 4.545327271 | M49: 11
A50: 2 | B50: 0.4953703704 | C50: 0.3981481481 | D50: 0.2509259259 | E50: 0.1481481481 | F50: 45 | G50: 0.2 | H50: 0 | I50: 26.2 | J50: 12.5 | K50: =MIN(I50:J50)/MAX(I50:J50) -> 0.4770992366 | L50: 4.548626166 | M50: 34
A51: 3 | B51: 0.4953703704 | C51: 0.3981481481 | D51: 0.1990740741 | E51: =C51-D51 -> 0.1990740741 | F51: 45 | G51: 9999 | H51: 9999 | I51: 26.92073401 | J51: 11.56079581 | K51: =MIN(I51:J51)/MAX(I51:J51) -> 0.429438358 | L51: 4.616276043 | M51: 69
A52: 3 | B52: 0.5 | C52: 0.4 | D52: 0.2 | E52: 0.2 | F52: 45 | G52: 9999 | H52: 9999 | I52: 26.92073401 | J52: 11.56079581 | K52: =MIN(I52:J52)/MAX(I52:J52) -> 0.429438358 | L52: 4.616276043 | M52: 102
A53: 3 | B53: 0.5 | C53: 0.4 | D53: 0.3 | E53: 0.1 | F53: 60 | G53: 9999 | H53: 9999 | I53: 27.68546561 | J53: 19.74448526 | K53: =MIN(I53:J53)/MAX(I53:J53) -> 0.7131715083 | L53: 5.278940222 | M53: 111
A54: 0 | B54: 0.4953703704 | C54: 0.09953703704 | D54: 0.05092592593 | E54: 0.04861111111 | F54: 45 | G54: 9999 | H54: 9999 | I54: 31.45 | J54: 20.1 | K54: =J54/I54 -> 0.6391096979 | L54: 5.302122217 | M54: 13
A55: 3 | B55: 0.5 | C55: 0.2 | D55: 0.15 | E55: 0.05 | F55: 60 | G55: 9999 | H55: 9999 | I55: 28.39670627 | J55: 20.25144442 | K55: =MIN(I55:J55)/MAX(I55:J55) -> 0.7131617388 | L55: 5.490739411 | M55: 86
A56: 0 | B56: 0.4953703704 | C56: 0.05092592593 | D56: 0.025 | E56: 0.02592592593 | F56: 45 | G56: 9999 | H56: 9999 | I56: 29 | J56: 20.5 | K56: =J56/I56 -> 0.7068965517 | L56: 5.590169944 | M56: 14
A57: 3 | B57: 0.5 | C57: 0.4 | D57: 0.2 | E57: 0.2 | F57: 30 | G57: 9999 | H57: 9999 | I57: 26.61751376 | J57: 10.04337266 | K57: =MIN(I57:J57)/MAX(I57:J57) -> 0.3773219676 | L57: 6.000780595 | M57: 101
A58: 1 | B58: 0.4953703704 | C58: 0.1990740741 | D58: 0.03842592593 | E58: 0.1606481481 | F58: 0.09768518519 | G58: 9999 | H58: 9999 | I58: 31.9 | J58: 9 | K58: =J58/I58 -> 0.2821316614 | L58: 6.293647591 | M58: 15
A59: 3 | B59: 0.5 | C59: 0.2 | D59: 0.1 | E59: 0.1 | F59: 5 | G59: 9999 | H59: 9999 | I59: 28.17935541 | J59: 21.09530273 | K59: =MIN(I59:J59)/MAX(I59:J59) -> 0.7486084202 | L59: 6.361404101 | M59: 70
A60: 1 | B60: 0.4953703704 | C60: 0.1990740741 | D60: 0.0462962963 | E60: 0.1527777778 | F60: 0 | G60: 9999 | H60: 9999 | I60: 32.7 | J60: 9.1 | K60: =J60/I60 -> 0.2782874618 | L60: 6.488451279 | M60: 22
A61: 3 | B61: 0.5 | C61: 0.2 | D61: 0.05 | E61: 0.15 | F61: 15 | G61: 9999 | H61: 9999 | I61: 30.55412838 | J61: 21.50614471 | K61: =MIN(I61:J61)/MAX(I61:J61) -> 0.7038703392 | L61: 6.529699629 | M61: 78
A62: 3 | B62: 0.5 | C62: 0.4 | D62: 0.2 | E62: 0.2 | F62: 15 | G62: 9999 | H62: 9999 | I62: 25.10705165 | J62: 10.54444459 | K62: =MIN(I62:J62)/MAX(I62:J62) -> 0.4199794039 | L62: 6.617621748 | M62: 100
A63: 3 | B63: 0.5 | C63: 0.1 | D63: 0.075 | E63: 0.025 | F63: 60 | G63: 9999 | H63: 9999 | I63: 30.27520137 | J63: 21.67170513 | K63: =MIN(I63:J63)/MAX(I63:J63) -> 0.7158236492 | L63: 6.67737861 | M63: 98
A64: 1 | B64: 0.4953703704 | C64: 0.1990740741 | D64: 0.03888888889 | E64: 0.1601851852 | F64: 0.2074074074 | G64: 9999 | H64: 9999 | I64: 32.4 | J64: 8.55 | K64: =J64/I64 -> 0.2638888889 | L64: 6.882041848 | M64: 20
A65: 1 | B65: 0.4953703704 | C65: 0.1990740741 | D65: 0.0375 | E65: 0.1615740741 | F65: 0.1615740741 | G65: 9999 | H65: 9999 | I65: 32.9 | J65: 8.6 | K65: =J65/I65 -> 0.2613981763 | L65: 7.026378868 | M65: 21
A66: 1 | B66: 0.4953703704 | C66: 0.1990740741 | D66: 0.1203703704 | E66: 0.0787037037 | F66: 0.1759259259 | G66: 9999 | H66: 9999 | I66: 30.75 | J66: 8 | K66: =J66/I66 -> 0.2601626016 | L66: 7.04006392 | M66: 23
A67: 2 | B67: 0.4953703704 | C67: 0.2986111111 | D67: 0.150462963 | E67: 0.05 | F67: 45 | G67: 0.1 | H67: 67 | I67: 23.86 | J67: 18.62 | K67: =MIN(I67:J67)/MAX(I67:J67) -> 0.7803855826 | L67: 7.127692474 | M67: 51
A68: 2 | B68: 0.4953703704 | C68: 0.4953703704 | D68: 0.225 | E68: 0.02592592593 | F68: 45 | G68: 0.2 | H68: 45 | I68: 22.85 | J68: 14.57 | K68: 0.6376367615 | L68: 7.1629184 | M68: 37
A69: 3 | B69: 0.5 | C69: 0.2 | D69: 0.05 | E69: =C69-D69 -> 0.15 | F69: 59.03624347 | G69: 9999 | H69: 9999 | I69: 30.81987978 | J69: 22.64010968 | K69: 0.7345943543 | L69: 7.683975457 | M69: 81
A70: 2 | B70: 0.4953703704 | C70: 0.4953703704 | D70: 0.2 | E70: 0.1990740741 | F70: 45 | G70: 0.2 | H70: 0 | I70: 23.42 | J70: 10.15 | K70: 0.4333902647 | L70: 8.174282843 | M70: 35
A71: 2 | B71: 0.4953703704 | C71: 0.25 | D71: 0.07592592593 | E71: 0.1481481481 | F71: 45 | G71: 0.02592592593 | H71: 45 | I71: 21.78 | J71: 17.36 | K71: 0.7970615243 | L71: 8.552075771 | M71: 55
A72: 2 | B72: 0.4953703704 | C72: 0.150462963 | D72: 0.07592592593 | E72: 0.04861111111 | F72: 45 | G72: 0.02592592593 | H72: 45 | I72: 21.84 | J72: 17.74 | K72: 0.8122710623 | L72: 8.607740702 | M72: 57
A73: 2 | B73: 0.4953703704 | C73: 0.3981481481 | D73: 0.299537037 | E73: 0.09953703704 | F73: 67 | G73: 0.2 | H73: 0 | I73: 21.23 | J73: 14.95 | K73: 0.7041921809 | L73: 8.77014253 | M73: 32
A74: 2 | B74: 0.4953703704 | C74: 0.4953703704 | D74: 0.2509259259 | E74: 0.04861111111 | F74: 45 | G74: 0.2 | H74: 0 | I74: 20.85 | J74: 13.61 | K74: 0.6527577938 | L74: 9.254977039 | M74: 36
A75: 3 | B75: 0.4953703704 | C75: 0.1990740741 | D75: 0.09953703704 | E75: =C75-D75 -> 0.09953703704 | F75: 67 | G75: 9999 | H75: 9999 | I75: 29.88576069 | J75: 24.5451686 | K75: 0.8212997776 | L75: 9.545852204 | M75: 65
A76: 0 | B76: 0.4953703704 | C76: 0.1990740741 | D76: 0.09953703704 | E76: =C76-D76 -> 0.09953703704 | F76: 67 | G76: 9999 | H76: 9999 | I76: 31 | J76: 24.6 | K76: =J76/I76 -> 0.7935483871 | L76: 9.65194281 | M76: 9
A77: 2 | B77: 0.4953703704 | C77: 0.3981481481 | D77: 0.1990740741 | E77: 0.09953703704 | F77: 67 | G77: 0.09953703704 | H77: 45 | I77: 20.41 | J77: 13.7 | K77: =MIN(I77:J77)/MAX(I77:J77) -> 0.6712395884 | L77: =SQRT((I77-$C$6)^2+(J77-$C$7)^2) -> 9.677711506 | M77: 39
A78: 3 | B78: 0.5 | C78: 0.1 | D78: 0.075 | E78: =C78-D78 -> 0.025 | F78: 15 | G78: 9999 | H78: 9999 | I78: 29.82230213 | J78: 25.18735432 | K78: 0.8445811532 | L78: 10.188904 | M78: 95
A79: 2 | B79: 0.4953703704 | C79: 0.3981481481 | D79: 0.05092592593 | E79: 0.1990740741 | F79: 45 | G79: 0.1481481481 | H79: 45 | I79: 20.37 | J79: 18.49 | K79: 0.9077074129 | L79: 10.24289998 | M79: 54
A80: 2 | B80: 0.4953703704 | C80: 0.2986111111 | D80: 0.05092592593 | E80: 0.1990740741 | F80: 45 | G80: 0.04861111111 | H80: 45 | I80: 21.66 | J80: 21.19 | K80: 0.9783010157 | L80: 10.38613017 | M80: 56
A81: 3 | B81: 0.5 | C81: 0.4 | D81: 0.4 | E81: =C81-D81 -> 0 | F81: 0 | G81: 9999 | H81: 9999 | I81: 21.00980221 | J81: 20.97021597 | K81: 0.9981158202 | L81: 10.79199402 | M81: 99
A82: 3 | B82: 0.5 | C82: 0.4 | D82: 0.4 | E82: =C82-D82 -> 0 | F82: 0 | G82: 9999 | H82: 9999 | I82: 21.00980221 | J82: 20.97021597 | K82: 0.9981158202 | L82: 10.79199402 | M82: 103
A83: 3 | B83: 0.5 | C83: 0.4 | D83: 0.1 | E83: =C83-D83 -> 0.3 | F83: 0 | G83: 9999 | H83: 9999 | I83: 21.00980221 | J83: 20.97021597 | K83: 0.9981158202 | L83: 10.79199402 | M83: 104
A84: 3 | B84: 0.5 | C84: 0.4 | D84: 0.4 | E84: =C84-D84 -> 0 | F84: 0 | G84: 9999 | H84: 9999 | I84: 21.00980221 | J84: 20.97021597 | K84: 0.9981158202 | L84: 10.79199402 | M84: 107
A85: 1 | B85: 0.4953703704 | C85: 0.3981481481 | D85: 0.2384259259 | E85: =C85-D85 -> 0.1597222222 | F85: 0.09768518519 | G85: 9999 | H85: 9999 | I85: 21.3 | J85: 8.4 | K85: =J85/I85 -> 0.3943661972 | L85: 10.92016483 | M85: 27
A86: 2 | B86: 0.4953703704 | C86: 0.3981481481 | D86: 0.1990740741 | E86: 0.09953703704 | F86: 30 | G86: 0.09953703704 | H86: 67 | I86: 19.51 | J86: 11.77 | K86: =MIN(I86:J86)/MAX(I86:J86) -> 0.603280369 | L86: 10.97601931 | M86: 46
A87: 2 | B87: 0.4953703704 | C87: 0.3981481481 | D87: 0.299537037 | E87: 0.09953703704 | F87: 45 | G87: 0.2 | H87: 0 | I87: 18.92 | J87: 12.27 | K87: =MIN(I87:J87)/MAX(I87:J87) -> 0.6485200846 | L87: 11.41136714 | M87: 29
A88: 2 | B88: 0.4953703704 | C88: 0.3981481481 | D88: 0.3481481481 | E88: 0.05092592593 | F88: 45 | G88: 0.2 | H88: 0 | I88: 19.32 | J88: 10.84 | K88: =MIN(I88:J88)/MAX(I88:J88) -> 0.5610766046 | L88: 11.46158802 | M88: 33
A89: 0 | B89: 0.4953703704 | C89: 0.1990740741 | D89: 0.2 | E89: 0.2 | F89: 0 | G89: 9999 | H89: 9999 | I89: 26.9 | J89: 26.2 | K89: =J89/I89 -> 0.9739776952 | L89: 11.6211015 | M89: 6
A90: 2 | B90: 0.4953703704 | C90: 0.3981481481 | D90: 0.2476851852 | E90: 0.05092592593 | F90: 45 | G90: 0.09953703704 | H90: 67 | I90: 18.81 | J90: 11.11 | K90: =MIN(I90:J90)/MAX(I90:J90) -> 0.5906432749 | L90: 11.84686456 | M90: 49
A91: 3 | B91: 0.4953703704 | C91: 0.1990740741 | D91: 0.2 | E91: =C91-D91 -> -0.0009259259259 | F91: 0 | G91: 9999 | H91: 9999 | I91: 27.28201741 | J91: 27.19239678 | K91: =MIN(I91:J91)/MAX(I91:J91) -> 0.996715029 | L91: 12.49167597 | M91: 62
A92: 3 | B92: 0.5 | C92: 0.2 | D92: 0.2 | E92: =C92-D92 -> 0 | F92: 0 | G92: 9999 | H92: 9999 | I92: 27.28201741 | J92: 27.19239678 | K92: =MIN(I92:J92)/MAX(I92:J92) -> 0.996715029 | L92: 12.49167597 | M92: 77
A93: 0 | B93: 0.5449074074 | C93: 0.1990740741 | D93: 0.09953703704 | E93: =C93-D93 -> 0.09953703704 | F93: 45 | G93: 9999 | H93: 9999 | I93: 17.4 | J93: 12.7 | K93: =J93/I93 -> 0.7298850575 | L93: 12.8082005 | M93: 5
A94: 2 | B94: 0.4953703704 | C94: 0.3981481481 | D94: 0.299537037 | E94: 0.09953703704 | F94: 30 | G94: 0.2 | H94: 0 | I94: 17.6 | J94: 10.54 | K94: =MIN(I94:J94)/MAX(I94:J94) -> 0.5988636364 | L94: 13.17769327 | M94: 31
A95: 2 | B95: 0.4953703704 | C95: 0.3981481481 | D95: 0.4 | E95: 0.2 | F95: 0 | G95: 0.2 | H95: 0 | I95: 17.17 | J95: 18.2 | K95: =MIN(I95:J95)/MAX(I95:J95) -> 0.9434065934 | L95: 13.22304428 | M95: 28
A96: 2 | B96: 0.4953703704 | C96: 0.2986111111 | D96: 0.150462963 | E96: 0.09953703704 | F96: 45 | G96: 0.04861111111 | H96: 45 | I96: 16.15 | J96: 13.38 | K96: =MIN(I96:J96)/MAX(I96:J96) -> 0.8284829721 | L96: 13.94442182 | M96: 41
A97: 2 | B97: 0.4953703704 | C97: 0.3981481481 | D97: 0.299537037 | E97: 0.09953703704 | F97: 15 | G97: 0.2 | H97: 0 | I97: 16.57 | J97: 11.07 | K97: =MIN(I97:J97)/MAX(I97:J97) -> 0.668074834 | L97: 13.99320549 | M97: 30
A98: 3 | B98: 0.45 | C98: 0.2 | D98: 0.15 | E98: =C98-D98 -> 0.05 | F98: 30 | G98: 9999 | H98: 9999 | I98: 44.53236949 | J98: 17.45430843 | K98: =MIN(I98:J98)/MAX(I98:J98) -> 0.3919465466 | L98: 14.73816111 | M98: 143
A99: 1 | B99: 0.5449074074 | C99: 0.1990740741 | D99: 0.03796296296 | E99: 0.1611111111 | F99: 0.07314814815 | G99: 9999 | H99: 9999 | I99: 17.3 | J99: 7.5 | K99: =J99/I99 -> 0.4335260116 | L99: 14.74923727 | M99: 19
A100: 3 | B100: 0.5 | C100: 0.2 | D100: 0.1 | E100: 0.1 | F100: 90 | G100: 9999 | H100: 9999 | I100: 29.87434428 | J100: 29.90395843 | K100: =MIN(I100:J100)/MAX(I100:J100) -> 0.9990096916 | L100: 14.90448812 | M100: 76
A101: 3 | B101: 0.5 | C101: 0.2 | D101: 0.2 | E101: 0 | F101: 0 | G101: 9999 | H101: 9999 | I101: 29.87434428 | J101: 29.90395843 | K101: 0.9990096916 | L101: 14.90448812 | M101: 82
A102: 3 | B102: 0.5 | C102: 0.1 | D102: 0.05 | E102: 0.05 | F102: 0 | G102: 9999 | H102: 9999 | I102: 29.87434428 | J102: 29.90395843 | K102: 0.9990096916 | L102: 14.90448812 | M102: 87
A103: 3 | B103: 0.5 | C103: 0.1 | D103: 0.1 | E103: 0 | F103: 0 | G103: 9999 | H103: 9999 | I103: 29.87434428 | J103: 29.90395843 | K103: 0.9990096916 | L103: 14.90448812 | M103: 88
A104: 3 | B104: 0.5 | C104: 0.1 | D104: 0.1 | E104: 0 | F104: 0 | G104: 9999 | H104: 9999 | I104: 29.87434428 | J104: 29.90395843 | K104: 0.9990096916 | L104: 14.90448812 | M104: 89
A105: 3 | B105: 0.5 | C105: 0.1 | D105: 0.1 | E105: 0 | F105: 0 | G105: 9999 | H105: 9999 | I105: 29.87434428 | J105: 29.90395843 | K105: 0.9990096916 | L105: 14.90448812
A106: 2 | B106: 0.4953703704 | C106: 0.3981481481 | D106: 0.150462963 | E106: 0.1481481481 | F106: 45 | G106: 0.09953703704 | H106: 45 | I106: 14.88 | J106: 13.07 | K106: 0.8783602151 | L106: 15.24268021 | M106: 40
A107: 2 | B107: 0.4953703704 | C107: 0.3981481481 | D107: 0.1990740741 | E107: 0.09953703704 | F107: 15 | G107: 0.09953703704 | H107: 45 | I107: 14.62 | J107: 11.16 | K107: 0.7633378933 | L107: 15.85212919 | M107: 45
A108: 3 | B108: 0.45 | C108: 0.2 | D108: 0.1 | E108: =C108-D108 -> 0.1 | F108: 15 | G108: 9999 | H108: 9999 | I108: 45.85168246 | J108: 18.44416856 | K108: 0.4022571816 | L108: 16.22153303 | M108: 136
A109: 2 | B109: 0.4953703704 | C109: 0.2986111111 | D109: 0.1990740741 | E109: 0.05092592593 | F109: 45 | G109: 0.04861111111 | H109: 45 | I109: 13.66 | J109: 10.95 | K109: 0.8016105417 | L109: =SQRT((I109-$C$6)^2+(J109-$C$7)^2) -> 16.83443198 | M109: 53
A110: 2 | B110: 0.4953703704 | C110: 0.2986111111 | D110: 0.150462963 | E110: 0.09953703704 | F110: 45 | G110: 0.04861111111 | H110: 45 | I110: 14.09 | J110: 9.41 | K110: 0.6678495387 | L110: 16.86345753 | M110: 48
A111: 2 | B111: 0.4953703704 | C111: 0.3981481481 | D111: 0.1990740741 | E111: 0.1481481481 | F111: 45 | G111: 0.05092592593 | H111: 45 | I111: 13.4 | J111: 10.3 | K111: 0.7686567164 | L111: 17.25253605 | M111: 52
A112: 3 | B112: 0.45 | C112: 0.2 | D112: 0.1 | E112: =C112-D112 -> 0.1 | F112: 30 | G112: 9999 | H112: 9999 | I112: 47.34300939 | J112: 17.02449142 | K112: 0.3595988434 | L112: 17.46077146 | M112: 137
A113: 1 | B113: 0.4458333333 | C113: 0.1990740741 | D113: 0.01481481481 | E113: =C113-D113 -> 0.1842592593 | F113: 0.1361111111 | G113: 9999 | H113: 9999 | I113: 46.7 | J113: 21.3 | K113: =J113/I113 -> 0.4561027837 | L113: 17.84880948 | M113: 16
A114: 2 | B114: 0.4953703704 | C114: 0.3981481481 | D114: 0.150462963 | E114: 0.1481481481 | F114: 30 | G114: 0.09953703704 | H114: 45 | I114: 12.3 | J114: 11.47 | K114: =MIN(I114:J114)/MAX(I114:J114) -> 0.9325203252 | L114: 18.04857058 | M114: 47
A115: 3 | B115: 0.4458333333 | C115: 0.1990740741 | D115: 0.09953703704 | E115: =C115-D115 -> 0.09953703704 | F115: 45 | G115: 9999 | H115: 9999 | I115: 47.29856908 | J115: 20.17073366 | K115: 0.4264554731 | L115: 18.05483256 | M115: 59
A116: 3 | B116: 0.45 | C116: 0.2 | D116: 0.1 | E116: 0.1 | F116: 45 | G116: 9999 | H116: 9999 | I116: 47.29856908 | J116: 20.17073366 | K116: 0.4264554731 | L116: 18.05483256 | M116: 135
A117: 3 | B117: 0.45 | C117: 0.2 | D117: 0.15 | E117: 0.05 | F117: 15 | G117: 9999 | H117: 9999 | I117: 43.83678153 | J117: 26.84985162 | K117: 0.6124959607 | L117: 18.21745061 | M117: 142
A118: 3 | B118: 0.45 | C118: 0.2 | D118: 0.05 | E118: 0.15 | F118: 15 | G118: 9999 | H118: 9999 | I118: 48.05353787 | J118: 18.18922512 | K118: 0.3785199993 | L118: 18.33306812 | M118: 139
A119: 3 | B119: 0.45 | C119: 0.1 | D119: 0.05 | E119: 0.05 | F119: 45 | G119: 9999 | H119: 9999 | I119: 47.40524603 | J119: 23.35587564 | K119: 0.492685464 | L119: 19.30707764 | M119: 144
A120: 3 | B120: 0.45 | C120: 0.2 | D120: 0.05 | E120: 0.15 | F120: 30 | G120: 9999 | H120: 9999 | I120: 49.15530246 | J120: 17.89057183 | K120: 0.3639601615 | L120: 19.37217123 | M120: 140
A121: 3 | B121: 0.6 | C121: 0.2 | D121: 0.05 | E121: 0.15 | F121: 45 | G121: 9999 | H121: 9999 | I121: 11.19900822 | J121: 10.16676685 | K121: 0.9078274305 | L121: 19.41230112 | M121: 159
A122: 2 | B122: 0.4953703704 | C122: 0.3981481481 | D122: 0.09953703704 | E122: 0.1990740741 | F122: 45 | G122: 0.09953703704 | H122: 15 | I122: 10.57 | J122: 12.03 | K122: 0.8786367415 | L122: 19.65568111 | M122: 44
A123: 3 | B123: 0.6 | C123: 0.1 | D123: 0.075 | E123: =C123-D123 -> 0.025 | F123: 82.87498365 | G123: 9999 | H123: 9999 | I123: 10.8466151 | J123: 10.29450773 | K123: 0.9490986482 | L123: 19.72292602 | M123: 176
A124: 3 | B124: 0.6 | C124: 0.1 | D124: 0.025 | E124: =C124-D124 -> 0.075 | F124: 69.44395478 | G124: 9999 | H124: 9999 | I124: 10.84623446 | J124: 10.29580903 | K124: 0.9492519328 | L124: 19.72298524 | M124: 172
A125: 2 | B125: 0.4953703704 | C125: 0.3981481481 | D125: 0.1990740741 | E125: 0.09953703704 | F125: 45 | G125: 0.09953703704 | H125: 15 | I125: 10.72 | J125: 10.39 | K125: 0.9692164179 | L125: 19.82348355 | M125: 38
A126: 1 | B126: 0.5944444444 | C126: 0.1990740741 | D126: 0.06388888889 | E126: =C126-D126 -> 0.1351851852 | F126: 0.03240740741 | G126: 9999 | H126: 9999 | I126: 13.8 | J126: 3.5 | K126: =J126/I126 -> 0.2536231884 | L126: 19.86680649 | M126: 18
A127: 3 | B127: 0.6 | C127: 0.1 | D127: 0.075 | E127: 0.025 | F127: 15 | G127: 9999 | H127: 9999 | I127: 10.97808045 | J127: 9.190711749 | K127: =MIN(I127:J127)/MAX(I127:J127) -> 0.8371875022 | L127: 19.88922456 | M127: 173
A128: 0 | B128: 0.5944444444 | C128: 0.1990740741 | D128: 0.09953703704 | E128: 0.09953703704 | F128: 45 | G128: 9999 | H128: 9999 | I128: 11.8 | J128: 6.8 | K128: =J128/I128 -> 0.5762711864 | L128: 19.96196383 | M128: 4
A129: 3 | B129: 0.6 | C129: 0.1 | D129: 0.025 | E129: 0.075 | F129: 60 | G129: 9999 | H129: 9999 | I129: 11.17783618 | J129: 8.216529883 | K129: =MIN(I129:J129)/MAX(I129:J129) -> 0.7350733856 | L129: 20.00723164 | M129: 171
A130: 3 | B130: 0.6 | C130: 0.1 | D130: 0.05 | E130: 0.05 | F130: 60 | G130: 9999 | H130: 9999 | I130: 11.13909942 | J130: 8.250063439 | K130: 0.740640076 | L130: 20.03235419 | M130: 167
A131: 3 | B131: 0.45 | C131: 0.1 | D131: 0.025 | E131: 0.075 | F131: 30 | G131: 9999 | H131: 9999 | I131: 49.36568618 | J131: 20.21460668 | K131: 0.4094869989 | L131: 20.05547118 | M131: 146
A132: 3 | B132: 0.6 | C132: 0.1 | D132: 0.05 | E132: 0.05 | F132: 15 | G132: 9999 | H132: 9999 | I132: 11.12159584 | J132: 7.749375259 | K132: 0.6967862678 | L132: 20.22290045 | M132: 165
A133: 3 | B133: 0.6 | C133: 0.2 | D133: 0.1 | E133: 0.1 | F133: 60 | G133: 9999 | H133: 9999 | I133: 10.89079973 | J133: 8.092991957 | K133: 0.7431035515 | L133: 20.31916079 | M133: 155
A134: 3 | B134: 0.6 | C134: 0.2 | D134: 0.1 | E134: 0.1 | F134: 63.43494882 | G134: 9999 | H134: 9999 | I134: 10.8801569 | J134: 7.840801434 | K134: 0.7206515042 | L134: 20.41623188 | M134: 156
A135: 3 | B135: 0.6 | C135: 0.2 | D135: 0.2 | E135: 0 | F135: 0 | G135: 9999 | H135: 9999 | I135: 10.05727868 | J135: 10.08073608 | K135: 0.9976730476 | L135: 20.54047933 | M135: 151
A136: 3 | B136: 0.6 | C136: 0.2 | D136: 0.05 | E136: 0.15 | F136: 53.13010235 | G136: 9999 | H136: 9999 | I136: 11.21768308 | J136: 6.528113343 | K136: 0.5819484556 | L136: 20.6045697 | M136: 160
A137: 2 | B137: 0.4953703704 | C137: 0.3981481481 | D137: 0.2476851852 | E137: 0.05092592593 | F137: 45 | G137: 0.09953703704 | H137: 15 | I137: 10.64 | J137: 7.63 | K137: 0.7171052632 | L137: 20.71536869 | M137: 43
A138: 3 | B138: 0.6 | C138: 0.1 | D138: 0.025 | E138: =C138-D138 -> 0.075 | F138: 15 | G138: 9999 | H138: 9999 | I138: 11.10717871 | J138: 6.144013758 | K138: 0.5531570093 | L138: 20.86545443 | M138: 168
A139: 2 | B139: 0.4953703704 | C139: 0.3981481481 | D139: 0.1990740741 | E139: 0.09953703704 | F139: 30 | G139: 0.09953703704 | H139: 15 | I139: 9.6 | J139: 10.6 | K139: 0.9056603774 | L139: 20.86911594 | M139: 42
A140: 3 | B140: 0.6 | C140: 0.1 | D140: 0.025 | E140: =C140-D140 -> 0.075 | F140: 45 | G140: 9999 | H140: 9999 | I140: 11.17150716 | J140: 5.943636405 | K140: 0.5320353219 | L140: 20.89329712 | M140: 170
A141: 3 | B141: 0.6 | C141: 0.1 | D141: 0.05 | E141: 0.05 | F141: 45 | G141: 9999 | H141: 9999 | I141: 11.17946074 | J141: 5.843690264 | K141: 0.5227166496 | L141: =SQRT((I141-$C$6)^2+(J141-$C$7)^2) -> 20.92966091 | M141: 164
A142: 3 | B142: 0.6 | C142: 0.1 | D142: 0.075 | E142: 0.025 | F142: 30 | G142: 9999 | H142: 9999 | I142: 11.03343493 | J142: 6.136481075 | K142: 0.556171411 | L142: 20.93543786 | M142: 174
A143: 3 | B143: 0.6 | C143: 0.2 | D143: 0.15 | E143: 0.05 | F143: 60 | G143: 9999 | H143: 9999 | I143: 10.45873576 | J143: 7.355842481 | K143: 0.7033204252 | L143: 20.98318737 | M143: 163
A144: 0 | B144: 0.4458333333 | C144: 0.1990740741 | D144: 0.09953703704 | E144: 0.09953703704 | F144: 45 | G144: 9999 | H144: 9999 | I144: 42.8 | J144: 31.7 | K144: =J144/I144 -> 0.7406542056 | L144: 21.04115016 | M144: 2
A145: 3 | B145: 0.6 | C145: 0.1 | D145: 0.075 | E145: 0.025 | F145: 45 | G145: 9999 | H145: 9999 | I145: 11.0133428 | J145: 5.746356122 | K145: =MIN(I145:J145)/MAX(I145:J145) -> 0.5217631219 | L145: 21.1216258 | M145: 175
A146: 3 | B146: 0.6 | C146: 0.2 | D146: 0.15 | E146: 0.05 | F146: 15 | G146: 9999 | H146: 9999 | I146: 10.33463339 | J146: 6.764112099 | K146: 0.6545091481 | L146: 21.32033051 | M146: 161
A147: 3 | B147: 0.45 | C147: 0.1 | D147: 0.025 | E147: 0.075 | F147: 45 | G147: 9999 | H147: 9999 | I147: 49.43495587 | J147: 23.81329028 | K147: 0.4817095486 | L147: 21.33990616 | M147: 147
A148: 3 | B148: 0.5944444444 | C148: 0.1990740741 | D148: 0.09953703704 | E148: 0.09953703704 | F148: 45 | G148: 9999 | H148: 9999 | I148: 10.94971762 | J148: 5.348984419 | K148: 0.4885043252 | L148: 21.35545271 | M148: 61
A149: 3 | B149: 0.6 | C149: 0.2 | D149: 0.1 | E149: 0.1 | F149: 45 | G149: 9999 | H149: 9999 | I149: 10.94971762 | J149: 5.348984419 | K149: 0.4885043252 | L149: 21.35545271 | M149: 152
A150: 3 | B150: 0.6 | C150: 0.1 | D150: 0.025 | E150: 0.075 | F150: 30 | G150: 9999 | H150: 9999 | I150: 11.16348117 | J150: 4.672795768 | K150: 0.4185787297 | L150: 21.48175013 | M150: 169
A151: 3 | B151: 0.6 | C151: 0.1 | D151: 0.05 | E151: 0.05 | F151: 30 | G151: 9999 | H151: 9999 | I151: 11.18667351 | J151: 4.498936506 | K151: 0.4021692865 | L151: 21.54561645 | M151: 166
A152: 3 | B152: 0.6 | C152: 0.2 | D152: 0.05 | E152: 0.15 | F152: 30 | G152: 9999 | H152: 9999 | I152: 11.19301433 | J152: 4.101433983 | K152: 0.3664280116 | L152: 21.73663846 | M152: 158
A153: 3 | B153: 0.6 | C153: 0.2 | D153: 0.05 | E153: 0.15 | F153: 15 | G153: 9999 | H153: 9999 | I153: 11.04753132 | J153: 4.136341698 | K153: 0.3744132132 | L153: 21.84525443 | M153: 157
A154: 3 | B154: 0.6 | C154: 0.2 | D154: 0.1 | E154: 0.1 | F154: 30 | G154: 9999 | H154: 9999 | I154: 10.71161015 | J154: 4.257780465 | K154: 0.3974921048 | L154: 22.07798142 | M154: 154
A155: 3 | B155: 0.6 | C155: 0.2 | D155: 0.1 | E155: 0.1 | F155: 15 | G155: 9999 | H155: 9999 | I155: 10.70524584 | J155: 4.257639868 | K155: 0.3977152819 | L155: 22.08361019 | M155: 153
A156: 3 | B156: 0.6 | C156: 0.4 | D156: 0.1 | E156: 0.3 | F156: 30 | G156: 9999 | H156: 9999 | I156: 11.01109865 | J156: 3.725512633 | K156: 0.3383415907 | L156: 22.08375964 | M156: 182
A157: 3 | B157: 0.45 | C157: 0.1 | D157: 0.025 | E157: 0.075 | F157: 15 | G157: 9999 | H157: 9999 | I157: 48.94180069 | J157: 26.59927035 | K157: 0.5434877748 | L157: 22.21114329 | M157: 145
A158: 3 | B158: 0.45 | C158: 0.2 | D158: 0.05 | E158: 0.15 | F158: 45 | G158: 9999 | H158: 9999 | I158: 49.23611853 | J158: 26.41447728 | K158: 0.5364857765 | L158: 22.36780158 | M158: 141
A159: 3 | B159: 0.6 | C159: 0.4 | D159: 0.1 | E159: 0.3 | F159: 15 | G159: 9999 | H159: 9999 | I159: 10.51447598 | J159: 3.743547955 | K159: 0.3560375203 | L159: 22.50318553 | M159: 181
A160: 3 | B160: 0.6 | C160: 0.4 | D160: 0.2 | E160: 0.2 | F160: 45 | G160: 9999 | H160: 9999 | I160: 9.970337511 | J160: 3.700483479 | K160: 0.371149269 | L160: 22.99709662 | M160: 178
A161: 3 | B161: 0.6 | C161: 0.4 | D161: 0.4 | E161: 0 | F161: 0 | G161: 9999 | H161: 9999 | I161: 8.069291716 | J161: 8.023381338 | K161: 0.9943104822 | L161: 23.01367363 | M161: 177
A162: 3 | B162: 0.6 | C162: 0.4 | D162: 0.2 | E162: 0.2 | F162: 30 | G162: 9999 | H162: 9999 | I162: 9.899492667 | J162: 3.619403222 | K162: 0.3656150212 | L162: 23.09866615 | M162: 180
A163: 3 | B163: 0.45 | C163: 0.1 | D163: 0.075 | E163: 0.025 | F163: 30 | G163: 9999 | H163: 9999 | I163: 48.27923553 | J163: 29.310793 | K163: 0.6071097167 | L163: 23.21484973 | M163: 149
A164: 3 | B164: 0.6 | C164: 0.4 | D164: 0.3 | E164: 0.1 | F164: 60 | G164: 9999 | H164: 9999 | I164: 8.803378731 | J164: 5.286044508 | K164: 0.6004563326 | L164: 23.3164681 | M164: 185
A165: 3 | B165: 0.6 | C165: 0.2 | D165: 0.15 | E165: 0.05 | F165: 45 | G165: 9999 | H165: 9999 | I165: 9.251030686 | J165: 4.290783038 | K165: 0.4638167556 | L165: 23.34966928 | M165: 162
A166: 3 | B166: 0.6 | C166: 0.4 | D166: 0.2 | E166: 0.2 | F166: 15 | G166: 9999 | H166: 9999 | I166: 9.377060084 | J166: 3.789255176 | K166: 0.4040984212 | L166: 23.47310057 | M166: 179
A167: 3 | B167: 0.6 | C167: 0.4 | D167: 0.3 | E167: 0.1 | F167: 45 | G167: 9999 | H167: 9999 | I167: 8.779181801 | J167: 3.954641458 | K167: 0.4504567222 | L167: 23.92327466 | M167: 184
A168: 3 | B168: 0.6 | C168: 0.4 | D168: 0.3 | E168: 0.1 | F168: 30 | G168: 9999 | H168: 9999 | I168: 8.655244459 | J168: 3.672019405 | K168: 0.4242536906 | L168: 24.16447255 | M168: 183
A169: 3 | B169: 0.45 | C169: 0.2 | D169: 0.1 | E169: 0.1 | F169: 60 | G169: 9999 | H169: 9999 | I169: 47.13279461 | J169: 33.09829828 | K169: 0.7022350054 | L169: 24.92149778 | M169: 138
A170: 3 | B170: 0.45 | C170: 0.1 | D170: 0.075 | E170: 0.025 | F170: 60 | G170: 9999 | H170: 9999 | I170: 48.13875352 | J170: 33.31026197 | K170: 0.6919635332 | L170: 25.77363135 | M170: 150
A171: 3 | B171: 0.45 | C171: 0.1 | D171: 0.025 | E171: 0.075 | F171: 60 | G171: 9999 | H171: 9999 | I171: 49.44132727 | J171: 34.45787689 | K171: 0.6969448191 | L171: 27.50589354 | M171: 148
A172: 3 | B172: 0.45 | C172: 0.2 | D172: 0.2 | E172: =C172-D172 -> 0 | F172: 0 | G172: 9999 | H172: 9999 | I172: 42.25831197 | J172: 42.15598667 | K172: 0.9975785759 | L172: 29.79452676 | M172: 134
A173: 3 | B173: 0.4 | C173: 0.2 | D173: 0.15 | E173: 0.05 | F173: 30 | G173: 9999 | H173: 9999 | I173: 73.63866899 | J173: 30.320035 | K173: 0.4117406712 | L173: =SQRT((I173-$C$6)^2+(J173-$C$7)^2) -> 46.24972328 | M173: 120
A174: 3 | B174: 0.4 | C174: 0.4 | D174: 0.4 | E174: 0 | F174: 0 | G174: 9999 | H174: 9999 | I174: 54.78947301 | J174: 54.87144264 | K174: 0.9985061514 | L174: 46.94943993 | M174: 133
A175: 3 | B175: 0.4 | C175: 0.2 | D175: 0.15 | E175: 0.05 | F175: 45 | G175: 9999 | H175: 9999 | I175: 76.1668705 | J175: 31.29987993 | K175: 0.4109382429 | L175: 48.95984086 | M175: 121
A176: 3 | B176: 0.4 | C176: 0.2 | D176: 0.15 | E176: 0.05 | F176: 15 | G176: 9999 | H176: 9999 | I176: 72.4392684 | J176: 42.09994791 | K176: 0.5811757744 | L176: 50.35373551 | M176: 119
A177: 3 | B177: 0.4 | C177: 0.2 | D177: 0.1 | E177: 0.1 | F177: 30 | G177: 9999 | H177: 9999 | I177: 81.2065987 | J177: 29.79835849 | K177: 0.3669450386 | L177: 53.30203716 | M177: 114
A178: 3 | B178: 0.3962962963 | C178: 0.1990740741 | D178: 0.09953703704 | E178: 0.09953703704 | F178: 45 | G178: 9999 | H178: 9999 | I178: 81.57219926 | J178: 34.19658333 | K178: 0.419218602 | L178: 55.0290882 | M178: 60
A179: 3 | B179: 0.4 | C179: 0.2 | D179: 0.1 | E179: 0.1 | F179: 45 | G179: 9999 | H179: 9999 | I179: 81.57219926 | J179: 34.19658333 | K179: 0.419218602 | L179: 55.0290882 | M179: 113
A180: 3 | B180: 0.4 | C180: 0.2 | D180: 0.05 | E180: 0.15 | F180: 15 | G180: 9999 | H180: 9999 | I180: 82.71124638 | J180: 31.46648406 | K180: 0.3804377933 | L180: 55.22336998 | M180: 116
A181: 3 | B181: 0.4 | C181: 0.1 | D181: 0.075 | E181: 0.025 | F181: 45 | G181: 9999 | H181: 9999 | I181: 80.06734864 | J181: 38.43571809 | K181: 0.4800423486 | L181: 55.28084914 | M181: 132
A182: 3 | B182: 0.4 | C182: 0.2 | D182: 0.05 | E182: 0.15 | F182: 45 | G182: 9999 | H182: 9999 | I182: 78.66053894 | J182: 43.7251755 | K182: 0.5558718016 | L182: 56.50649306 | M182: 118
A183: 3 | B183: 0.4 | C183: 0.2 | D183: 0.05 | E183: 0.15 | F183: 30 | G183: 9999 | H183: 9999 | I183: 84.93264763 | J183: 30.90895116 | K183: 0.3639230852 | L183: 57.18995106 | M183: 117
A184: 3 | B184: 0.4 | C184: 0.1 | D184: 0.05 | E184: 0.05 | F184: 30 | G184: 9999 | H184: 9999 | I184: 84.41301978 | J184: 34.26224294 | K184: 0.4058881323 | L184: 57.72183923 | M184: 125
A185: 3 | B185: 0.4 | C185: 0.1 | D185: 0.05 | E185: 0.05 | F185: 45 | G185: 9999 | H185: 9999 | I185: 84.58324076 | J185: 34.64146971 | K185: 0.4095547699 | L185: 58.00963285 | M185: 123
A186: 3 | B186: 0.4 | C186: 0.1 | D186: 0.025 | E186: 0.075 | F186: 30 | G186: 9999 | H186: 9999 | I186: 85.14261456 | J186: 34.64466102 | K186: 0.4069015404 | L186: 58.53734403 | M186: 128
A187: 3 | B187: 0.4 | C187: 0.1 | D187: 0.025 | E187: 0.075 | F187: 45 | G187: 9999 | H187: 9999 | I187: 85.40207432 | J187: 40.03311724 | K187: 0.4687604787 | L187: 60.7951215 | M187: 129
A188: 3 | B188: 0.4 | C188: 0.1 | D188: 0.025 | E188: 0.075 | F188: 15 | G188: 9999 | H188: 9999 | I188: 84.29855827 | J188: 42.63703798 | K188: 0.5057860876 | L188: 60.92732801 | M188: 127
A189: 3 | B189: 0.4 | C189: 0.1 | D189: 0.075 | E189: 0.025 | F189: 30 | G189: 9999 | H189: 9999 | I189: 82.65777248 | J189: 48.60994754 | K189: 0.5880868318 | L189: 62.46974928 | M189: 131
A190: 1 | B190: 0.3962962963 | C190: 0.1990740741 | D190: 0.0375 | E190: 0.1615740741 | F190: 0.1476851852 | G190: 9999 | H190: 9999 | I190: 92.4 | J190: 29.6 | K190: =J190/I190 -> 0.3203463203 | L190: 64.08525571 | M190: 17
A191: 0 | B191: 0.3962962963 | C191: 0.1990740741 | D191: 0.09953703704 | E191: 0.09953703704 | F191: 45 | G191: 9999 | H191: 9999 | I191: 89.5 | J191: 43.49 | K191: =J191/I191 -> 0.4859217877 | L191: 65.96916022 | M191: 3
A192: 3 | B192: 0.4 | C192: 0.1 | D192: 0.05 | E192: 0.05 | F192: 15 | G192: 9999 | H192: 9999 | I192: 83.29258754 | J192: 54.30091813 | K192: =MIN(I192:J192)/MAX(I192:J192) -> 0.6519297784 | L192: 66.21678075 | M192: 124
A193: 3 | B193: 0.4 | C193: 0.1 | D193: 0.025 | E193: 0.075 | F193: 60 | G193: 9999 | H193: 9999 | I193: 80.98927846 | J193: 57.28814375 | K193: 0.7073546627 | L193: 66.24344208 | M193: 130
A194: 3 | B194: 0.4 | C194: 0.2 | D194: 0.1 | E194: 0.1 | F194: 60 | G194: 9999 | H194: 9999 | I194: 81.15758226 | J194: 57.11188951 | K194: 0.7037160043 | L194: 66.26091955 | M194: 115
A195: 3 | B195: 0.4 | C195: 0.1 | D195: 0.05 | E195: 0.05 | F195: 60 | G195: 9999 | H195: 9999 | I195: 84.00612828 | J195: 57.3508575 | K195: 0.6826984968 | L195: 68.63131226 | M195: 126
A196: 3 | B196: 0.4 | C196: 0.2 | D196: 0.2 | E196: 0 | F196: 0 | G196: 9999 | H196: 9999 | I196: 70.2594278 | J196: 70.97662434 | K196: 0.9898953135 | L196: 68.95073604 | M196: 112
A197: 3 | B197: 0.4 | C197: 0.1 | D197: 0.1 | E197: 0 | F197: 0 | G197: 9999 | H197: 9999 | I197: 80.95776273 | J197: 81.03841369 | K197: 0.9990047812 | L197: 83.41322236 | M197: 122
A198: 3 | B198: 0.3 | C198: 0.4 | D198: 0.4 | E198: 0 | F198: 0 | G198: 9999 | H198: 9999 | I198: 101.942 | J198: 101.942 | K198: 1 | L198: 112.8475198 | M198: 188
A199: 3 | B199: 0.3 | C199: 0.2 | D199: 0.2 | E199: 0 | F199: 0 | G199: 9999 | H199: 9999 | I199: 131.2 | J199: 131.2 | K199: 1 | L199: 154.0904929 | M199: 186
A200: 3 | B200: 0.3 | C200: 0.1 | D200: 0.1 | E200: 0 | F200: 0 | G200: 9999 | H200: 9999 | I200: 150.4884069 | J200: 150.4884069 | K200: 1 | L200: 181.3134429 | M200: 187
A202: CONTROL (0 = EXP CHAMFER, 1 = EXP ROUNDED, 2 = EXP 2 CHAMFER, 3 = NUM CHAMFER) | B202: β | C202: α | D202: αi | E202: αR | F202: θ (R) or (βb) | G202: αL | H202: θL | I202: kAB | J202: kBA | K202: λ
... 188 more rows

Sheet Figure
A1: Figure of head loss coefficients
A2: Authors: Nicolas J. Adam, Givonni De Cesare & Anton J. Schleiss
A3: Laboratoires de Constructions Hydrauliques - EPFL | N3: 1 = ROUNDED ORIFICES (EXP) | O3: 0 | P3: 0
N4: 2 = 2-CHAMFERED ORIFICES 8EXP) | O4: 160 | P4: 160
B5: Target | N5: 3 = CHAMFERED ORIFICES (NUM)
B6: kAB | C6: =Thesis_Results!C6 -> 30 | D6: =C6-$C$9*C6 -> 28.5 | E6: =C6+$C$9*C6 -> 31.5
B7: kBA | C7: =Thesis_Results!C7 -> 15 | D7: =C7-$C$9*C7 -> 14.25 | E7: =C7+$C$9*C7 -> 15.75
B8: λ | C8: =C7/C6 -> 0.5 | D8: =C8-$C$9*C8 -> 0.475 | E8: =C8+$C$9*C8 -> 0.525
B9: Variation | C9: =Thesis_Results!C9 -> 0.05 | I9: Version 1.0 (24.10.2017)
A12: CONTROL (0 = EXP CHAMFER, 1 = EXP ROUNDED, 2 = EXP 2 CHAMFER, 3 = NUM CHAMFER) | L12: Proximity Factor | M12: RANK
A13: 0 | L13: =SQRT((I13-$C$6)^2+(J13-$C$7)^2) -> 33.54101966 | M13: 1
A14: 0 | L14: 33.54101966 | M14: 2
A15: 0 | L15: 33.54101966 | M15: 3
A16: 0 | L16: 33.54101966 | M16: 4
A17: 0 | L17: 33.54101966 | M17: 5
A18: 0 | L18: 33.54101966 | M18: 6
A19: 0 | L19: 33.54101966 | M19: 7
A20: 0 | L20: 33.54101966 | M20: 8
A21: 0 | L21: 33.54101966 | M21: 9
A22: 0 | L22: 33.54101966 | M22: 10
A23: 0 | L23: 33.54101966 | M23: 11
A24: 0 | L24: 33.54101966 | M24: 12
A25: 0 | L25: 33.54101966 | M25: 13
A26: 0 | L26: 33.54101966 | M26: 14
A27: 1 | L27: 33.54101966 | M27: 15
A28: 1 | L28: 33.54101966 | M28: 16
A29: 1 | L29: 33.54101966 | M29: 17
A30: 1 | L30: 33.54101966 | M30: 18
A31: 1 | L31: 33.54101966 | M31: 19
A32: 1 | L32: 33.54101966 | M32: 20
A33: 1 | L33: 33.54101966 | M33: 21
A34: 1 | L34: 33.54101966 | M34: 22
A35: 1 | L35: 33.54101966 | M35: 23
A36: 1 | L36: 33.54101966 | M36: 24
A37: 1 | L37: 33.54101966 | M37: 25
A38: 1 | L38: 33.54101966 | M38: 26
A39: 1 | L39: 33.54101966 | M39: 27
A40: 2 | L40: 33.54101966 | M40: 28
A41: 2 | L41: 33.54101966 | M41: 29
A42: 2 | L42: 33.54101966 | M42: 30
A43: 2 | L43: 33.54101966 | M43: 31
A44: 2 | L44: 33.54101966 | M44: 32
A45: 2 | L45: =SQRT((I45-$C$6)^2+(J45-$C$7)^2) -> 33.54101966 | M45: 33
A46: 2 | L46: 33.54101966 | M46: 34
A47: 2 | L47: 33.54101966 | M47: 35
A48: 2 | L48: 33.54101966 | M48: 36
A49: 2 | L49: 33.54101966 | M49: 37
A50: 2 | L50: 33.54101966 | M50: 38
A51: 2 | L51: 33.54101966 | M51: 39
A52: 2 | L52: 33.54101966 | M52: 40
A53: 2 | L53: 33.54101966 | M53: 41
A54: 2 | L54: 33.54101966 | M54: 42
A55: 2 | L55: 33.54101966 | M55: 43
A56: 2 | L56: 33.54101966 | M56: 44
A57: 2 | L57: 33.54101966 | M57: 45
A58: 2 | L58: 33.54101966 | M58: 46
A59: 2 | L59: 33.54101966 | M59: 47
A60: 2 | L60: 33.54101966 | M60: 48
A61: 2 | L61: 33.54101966 | M61: 49
A62: 2 | L62: 33.54101966 | M62: 50
A63: 2 | L63: 33.54101966 | M63: 51
A64: 2 | L64: 33.54101966 | M64: 52
A65: 2 | L65: 33.54101966 | M65: 53
A66: 2 | L66: 33.54101966 | M66: 54
A67: 2 | L67: 33.54101966 | M67: 55
A68: 2 | L68: 33.54101966 | M68: 56
A69: 2 | L69: 33.54101966 | M69: 57
A70: 3 | L70: 33.54101966 | M70: 58
A71: 3 | L71: 33.54101966 | M71: 59
A72: 3 | L72: 33.54101966 | M72: 60
A73: 3 | L73: 33.54101966 | M73: 61
A74: 3 | L74: 33.54101966 | M74: 62
A75: 3 | L75: 33.54101966 | M75: 63
A76: 3 | L76: 33.54101966 | M76: 64
A77: 3 | L77: =SQRT((I77-$C$6)^2+(J77-$C$7)^2) -> 33.54101966 | M77: 65
A78: 3 | L78: 33.54101966 | M78: 66
A79: 3 | L79: 33.54101966 | M79: 67
A80: 3 | L80: 33.54101966 | M80: 68
A81: 3 | L81: 33.54101966 | M81: 69
A82: 3 | L82: 33.54101966 | M82: 70
A83: 3 | L83: 33.54101966 | M83: 71
A84: 3 | L84: 33.54101966 | M84: 72
A85: 3 | L85: 33.54101966 | M85: 73
A86: 3 | L86: 33.54101966 | M86: 74
A87: 3 | L87: 33.54101966 | M87: 75
A88: 3 | L88: 33.54101966 | M88: 76
A89: 3 | L89: 33.54101966 | M89: 77
A90: 3 | L90: 33.54101966 | M90: 78
A91: 3 | L91: 33.54101966 | M91: 79
A92: 3 | L92: 33.54101966 | M92: 80
A93: 3 | L93: 33.54101966 | M93: 81
A94: 3 | L94: 33.54101966 | M94: 82
A95: 3 | L95: 33.54101966 | M95: 83
A96: 3 | L96: 33.54101966 | M96: 84
A97: 3 | L97: 33.54101966 | M97: 85
A98: 3 | L98: 33.54101966 | M98: 86
A99: 3 | L99: 33.54101966 | M99: 87
A100: 3 | L100: 33.54101966 | M100: 88
A101: 3 | L101: 33.54101966 | M101: 89
A102: 3 | L102: 33.54101966 | M102: 90
A103: 3 | L103: 33.54101966 | M103: 91
A104: 3 | L104: 33.54101966 | M104: 92
A105: 3 | L105: 33.54101966 | M105: 93
A106: 3 | L106: 33.54101966 | M106: 95
A107: 3 | L107: 33.54101966 | M107: 96
A108: 3 | L108: 33.54101966 | M108: 97
A109: 3 | L109: =SQRT((I109-$C$6)^2+(J109-$C$7)^2) -> 33.54101966 | M109: 98
A110: 3 | L110: 33.54101966 | M110: 99
A111: 3 | L111: 33.54101966 | M111: 100
A112: 3 | L112: 33.54101966 | M112: 101
A113: 3 | L113: 33.54101966 | M113: 102
A114: 3 | L114: 33.54101966 | M114: 103
A115: 3 | L115: 33.54101966 | M115: 104
A116: 3 | L116: 33.54101966 | M116: 105
A117: 3 | L117: 33.54101966 | M117: 106
A118: 3 | L118: 33.54101966 | M118: 107
A119: 3 | L119: 33.54101966 | M119: 108
A120: 3 | L120: 33.54101966 | M120: 109
A121: 3 | L121: 33.54101966 | M121: 110
A122: 3 | L122: 33.54101966 | M122: 111
A123: 3 | L123: 33.54101966 | M123: 112
A124: 3 | L124: 33.54101966 | M124: 113
A125: 3 | L125: 33.54101966 | M125: 114
A126: 3 | L126: 33.54101966 | M126: 115
A127: 3 | L127: 33.54101966 | M127: 116
A128: 3 | L128: 33.54101966 | M128: 117
A129: 3 | L129: 33.54101966 | M129: 118
A130: 3 | L130: 33.54101966 | M130: 119
A131: 3 | L131: 33.54101966 | M131: 120
A132: 3 | L132: 33.54101966 | M132: 121
A133: 3 | L133: 33.54101966 | M133: 122
A134: 3 | L134: 33.54101966 | M134: 123
A135: 3 | L135: 33.54101966 | M135: 124
A136: 3 | L136: 33.54101966 | M136: 125
A137: 3 | L137: 33.54101966 | M137: 126
A138: 3 | L138: 33.54101966 | M138: 127
A139: 3 | L139: 33.54101966 | M139: 128
A140: 3 | L140: 33.54101966 | M140: 129
A141: 3 | L141: =SQRT((I141-$C$6)^2+(J141-$C$7)^2) -> 33.54101966 | M141: 130
A142: 3 | L142: 33.54101966 | M142: 131
A143: 3 | L143: 33.54101966 | M143: 132
A144: 3 | L144: 33.54101966 | M144: 133
A145: 3 | L145: 33.54101966 | M145: 134
A146: 3 | L146: 33.54101966 | M146: 135
A147: 3 | L147: 33.54101966 | M147: 136
A148: 3 | L148: 33.54101966 | M148: 137
A149: 3 | L149: 33.54101966 | M149: 138
A150: 3 | L150: 33.54101966 | M150: 139
A151: 3 | L151: 33.54101966 | M151: 140
A152: 3 | L152: 33.54101966 | M152: 141
A153: 3 | L153: 33.54101966 | M153: 142
A154: 3 | L154: 33.54101966 | M154: 143
A155: 3 | L155: 33.54101966 | M155: 144
A156: 3 | L156: 33.54101966 | M156: 145
A157: 3 | L157: 33.54101966 | M157: 146
A158: 3 | L158: 33.54101966 | M158: 147
A159: 3 | L159: 33.54101966 | M159: 148
A160: 3 | L160: 33.54101966 | M160: 149
A161: 3 | L161: 33.54101966 | M161: 150
A162: 3 | L162: 33.54101966 | M162: 151
A163: 3 | L163: 33.54101966 | M163: 152
A164: 3 | L164: 33.54101966 | M164: 153
A165: 3 | L165: 33.54101966 | M165: 154
A166: 3 | L166: 33.54101966 | M166: 155
A167: 3 | L167: 33.54101966 | M167: 156
A168: 3 | L168: 33.54101966 | M168: 157
A169: 3 | L169: 33.54101966 | M169: 158
A170: 3 | L170: 33.54101966 | M170: 159
A171: 3 | L171: 33.54101966 | M171: 160
A172: 3 | L172: 33.54101966 | M172: 161
A173: 3 | L173: =SQRT((I173-$C$6)^2+(J173-$C$7)^2) -> 33.54101966 | M173: 162
A174: 3 | L174: 33.54101966 | M174: 163
A175: 3 | L175: 33.54101966 | M175: 164
A176: 3 | L176: 33.54101966 | M176: 165
A177: 3 | L177: 33.54101966 | M177: 166
A178: 3 | L178: 33.54101966 | M178: 167
A179: 3 | L179: 33.54101966 | M179: 168
A180: 3 | L180: 33.54101966 | M180: 169
A181: 3 | L181: 33.54101966 | M181: 170
A182: 3 | L182: 33.54101966 | M182: 171
A183: 3 | L183: 33.54101966 | M183: 172
A184: 3 | L184: 33.54101966 | M184: 173
A185: 3 | L185: 33.54101966 | M185: 174
A186: 3 | L186: 33.54101966 | M186: 175
A187: 3 | L187: 33.54101966 | M187: 176
A188: 3 | L188: 33.54101966 | M188: 177
A189: 3 | L189: 33.54101966 | M189: 178
A190: 3 | L190: 33.54101966 | M190: 179
A191: 3 | L191: 33.54101966 | M191: 180
A192: 3 | L192: 33.54101966 | M192: 181
A193: 3 | L193: 33.54101966 | M193: 182
A194: 3 | L194: 33.54101966 | M194: 183
A195: 3 | L195: 33.54101966 | M195: 184
A196: 3 | L196: 33.54101966 | M196: 185
A197: 3 | L197: 33.54101966 | M197: 186
A198: 3 | L198: 33.54101966 | M198: 187
A199: 3 | L199: 33.54101966 | M199: 188
A200: 3 | L200: 33.54101966
A202: CONTROL (0 = EXP CHAMFER, 1 = EXP ROUNDED, 2 = EXP 2 CHAMFER, 3 = NUM CHAMFER) | B202: β | C202: α | D202: αi | E202: αR | F202: θ (R) or (βb) | G202: αL | H202: θL | I202: kAB | J202: kBA | K202: λ
A203: 0 | B203: 0.4953703704 | C203: 0.1990740741 | D203: 0.09953703704 | E203: 0.09953703704 | F203: 45 | G203: 9999 | H203: 9999 | I203: 29.4 | J203: 18.2 | K203: 0.619047619 | L203: =SQRT((I203-$C$6)^2+(J203-$C$7)^2) -> 3.255764119 | M203: 1
... 187 more rows

Sheet READ ME
A1: Read me | L1: Standard shapes used in the thesis
A2: Authors: Nicolas J. Adam, Givonni De Cesare & Anton J. Schleiss | L2: Authors: Nicolas J. Adam, Givonni De Cesare & Anton J. Schleiss
A3: Laboratoires de Constructions Hydrauliques - EPFL | L3: Laboratoires de Constructions Hydrauliques - EPFL
P6: =N6+$C$9*N6 -> 0
P7: =N7+$C$9*N7 -> 0
P8: =N8+$C$9*N8 -> 0
I9: Version 1.0 (24.10.2017) | T9: Version 1.0 (24.10.2017)
B11: Three different orifice shapes were studied in this thesis as shown on the left side, where the color legend is defined. | L11: CONTROL (0 = EXP CHAMFER, 1 = EXP ROUNDED, 2 = EXP 2 CHAMFER, 3 = NUM CHAMFER) | N11: CHAMFERED ORIFICES | Q11: experimental | S11: numerical
L12: 0
A13: CONTROL (0 = EXP CHAMFER, 1 = EXP ROUNDED, 2 = EXP 2 CHAMFER, 3 = NUM CHAMFER) | L13: 0
A14: 0 | B14: For the utilization of the result sheet "Thesis_Results", the target head loss coefficients must be changed within cells "C6" and "C7" corresponding to kAB and kBA (as define on the left). | L14: 0
A15: 0 | L15: 0
A16: 0 | L16: 0
A17: 0 | L17: 0
A18: 0 | B18: It is possible to introduce a range in % within cell "C9". This highlights the values in the range from target values in columns I, J and K. | L18: 0
A19: 0 | L19: 0
A20: 0 | L20: 0
A21: 0 | B21: The button "LOOK UP" sorts the orifices with the closest orifices at the top of the list and the farthest at the bottom. | L21: 0
A22: 0 | L22: 0
A23: 0 | L23: 0
A24: 0 | B24: The button "RESET" sorts the list as before with first the exerimentaly tested orifices (chamfered, rounded and 2-chamfered) and after the numericaly tested orifices. | L24: 0 | N24: ROUNDED ORIFICES | Q24: experimental
A25: 0 | L25: 1
A26: 0 | L26: 1
A27: 1 | B27: The sheet "Figure" sows the tested head loss coefficients in a Figure with the targert coefficients. | L27: 1
A28: 1 | L28: 1
A29: 1 | L29: 1
A30: 1 | L30: 1
A31: 1 | L31: 1
A32: 1 | L32: 1
A33: 1 | L33: 1
A34: 1 | L34: 1
A35: 1 | L35: 1
A36: 1 | L36: 1
A37: 1 | L37: 1 | N37: 2-CHAMFERED ORIFICES | Q37: experimental
A38: 1 | L38: 2
A39: 1 | L39: 2
A40: 2 | L40: 2
A41: 2 | L41: 2
A42: 2 | L42: 2
A43: 2 | L43: 2
A44: 2 | L44: 2
A45: 2 | L45: 2
A46: 2 | L46: 2
A47: 2 | L47: 2
A48: 2 | L48: 2
A49: 2 | L49: 2
A50: 2 | L50: 2
A51: 2 | L51: 2
A52: 2 | L52: 2
A53: 2 | L53: 2
A54: 2 | L54: 2
A55: 2 | L55: 2
A56: 2 | L56: 2
A57: 2 | L57: 2
A58: 2 | L58: 2
A59: 2 | L59: 2
A60: 2 | L60: 2
A61: 2 | L61: 2
A62: 2 | L62: 2
A63: 2 | L63: 2
A64: 2 | L64: 2
A65: 2 | L65: 2
A66: 2 | L66: 2
A67: 2 | L67: 2
A68: 2 | L68: 3
A69: 2 | L69: 3
A70: 3 | L70: 3
A71: 3 | L71: 3
A72: 3 | L72: 3
A73: 3 | L73: 3
A74: 3 | L74: 3
A75: 3 | L75: 3
A76: 3 | L76: 3
A77: 3 | L77: 3
A78: 3 | L78: 3
A79: 3 | L79: 3
A80: 3 | L80: 3
A81: 3 | L81: 3
A82: 3 | L82: 3
A83: 3 | L83: 3
A84: 3 | L84: 3
A85: 3 | L85: 3
A86: 3 | L86: 3
A87: 3 | L87: 3
A88: 3 | L88: 3
A89: 3 | L89: 3
A90: 3 | L90: 3
A91: 3 | L91: 3
A92: 3 | L92: 3
A93: 3 | L93: 3
A94: 3 | L94: 3
A95: 3 | L95: 3
A96: 3 | L96: 3
A97: 3 | L97: 3
A98: 3 | L98: 3
A99: 3 | L99: 3
A100: 3 | L100: 3
A101: 3 | L101: 3
A102: 3 | L102: 3
A103: 3 | L103: 3
A104: 3 | L104: 3
A105: 3 | L105: 3
A106: 3 | L106: 3
A107: 3 | L107: 3
A108: 3 | L108: 3
A109: 3 | L109: 3
A110: 3 | L110: 3
A111: 3 | L111: 3
A112: 3 | L112: 3
A113: 3 | L113: 3
A114: 3 | L114: 3
A115: 3 | L115: 3
A116: 3 | L116: 3
A117: 3 | L117: 3
A118: 3 | L118: 3
A119: 3 | L119: 3
A120: 3 | L120: 3
A121: 3 | L121: 3
A122: 3 | L122: 3
A123: 3 | L123: 3
A124: 3 | L124: 3
A125: 3 | L125: 3
A126: 3 | L126: 3
A127: 3 | L127: 3
A128: 3 | L128: 3
A129: 3 | L129: 3
A130: 3 | L130: 3
A131: 3 | L131: 3
A132: 3 | L132: 3
A133: 3 | L133: 3
A134: 3 | L134: 3
A135: 3 | L135: 3
A136: 3 | L136: 3
A137: 3 | L137: 3
A138: 3 | L138: 3
A139: 3 | L139: 3
A140: 3 | L140: 3
A141: 3 | L141: 3
A142: 3 | L142: 3
A143: 3 | L143: 3
A144: 3 | L144: 3
A145: 3 | L145: 3
A146: 3 | L146: 3
A147: 3 | L147: 3
A148: 3 | L148: 3
A149: 3 | L149: 3
A150: 3 | L150: 3
A151: 3 | L151: 3
A152: 3 | L152: 3
A153: 3 | L153: 3
A154: 3 | L154: 3
A155: 3 | L155: 3
A156: 3 | L156: 3
A157: 3 | L157: 3
A158: 3 | L158: 3
A159: 3 | L159: 3
A160: 3 | L160: 3
A161: 3 | L161: 3
A162: 3 | L162: 3
A163: 3 | L163: 3
A164: 3 | L164: 3
A165: 3 | L165: 3
A166: 3 | L166: 3
A167: 3 | L167: 3
A168: 3 | L168: 3
A169: 3 | L169: 3
A170: 3 | L170: 3
A171: 3 | L171: 3
A172: 3 | L172: 3
A173: 3 | L173: 3
A174: 3 | L174: 3
A175: 3 | L175: 3
A176: 3 | L176: 3
A177: 3 | L177: 3
A178: 3 | L178: 3
A179: 3 | L179: 3
A180: 3 | L180: 3
A181: 3 | L181: 3
A182: 3 | L182: 3
A183: 3 | L183: 3
A184: 3 | L184: 3
A185: 3 | L185: 3
A186: 3 | L186: 3
A187: 3 | L187: 3
A188: 3 | L188: 3
A189: 3 | L189: 3
A190: 3 | L190: 3
A191: 3 | L191: 3
A192: 3 | L192: 3
A193: 3 | L193: 3
A194: 3 | L194: 3
A195: 3 | L195: 3
A196: 3 | L196: 3
A197: 3 | L197: 3
A198: 3 | L198: 3
A199: 3
A200: 3 | L200: CONTROL (0 = EXP CHAMFER, 1 = EXP ROUNDED, 2 = EXP 2 CHAMFER, 3 = NUM CHAMFER) | M200: β | N200: α | O200: αi | P200: αR | Q200: θ (R) or (βb) | R200: αL | S200: θL | T200: kAB | U200: kBA | V200: λ
L201: 0 | M201: 0.4953703704 | N201: 0.1990740741 | O201: 0.09953703704 | P201: 0.09953703704 | Q201: 45 | R201: 9999 | S201: 9999 | T201: 29.4 | U201: 18.2 | V201: 0.619047619
A202: CONTROL (0 = EXP CHAMFER, 1 = EXP ROUNDED, 2 = EXP 2 CHAMFER, 3 = NUM CHAMFER) | B202: β | C202: α | D202: αi | E202: αR | F202: θ (R) or (βb) | G202: αL | H202: θL | I202: kAB | J202: kBA | K202: λ | L202: 0 | M202: 0.4458333333 | N202: 0.1990740741 | O202: 0.09953703704 | P202: 0.09953703704 | Q202: 45 | R202: 9999 | S202: 9999 | T202: 42.8 | U202: 31.7 | V202: 0.7406542056
A203: 0 | B203: 0.4953703704 | C203: 0.1990740741 | D203: 0.09953703704 | E203: 0.09953703704 | F203: 45 | G203: 9999 | H203: 9999 | I203: 29.4 | J203: 18.2 | K203: 0.619047619 | L203: 0 | M203: 0.3962962963 | N203: 0.1990740741 | O203: 0.09953703704 | P203: 0.09953703704 | Q203: 45 | R203: 9999 | S203: 9999 | T203: 89.5 | U203: 43.49 | V203: 0.4859217877
... 187 more rows
